bitfinex-derivatives/quotes_SOLF0:USTF0_20220102
["timestamp","ask_amount","ask_price","bid_price","bid_amount"]
[1641087723042,30.66479,178.42,178.41,1.89245614]
[1641087723442,30.66479,178.42,178.36,31.1306]
[1641087724742,2.08823185,178.41,178.37,1.89304269]
[1641087725544,27.66479,178.42,178.37,1.89304269]
[1641087726344,2.08805268,178.41,178.37,1.89304269]
[1641087727045,5.015,178.41,178.37,1.89304269]
[1641087727945,2.08821762,178.4,178.37,1.89304269]
[1641087728646,5.015,178.41,178.37,1.89304269]
[1641087729349,2.0882073,178.4,178.37,1.89304269]
[1641087730150,5.015,178.41,178.37,1.89304269]
[1641087730848,2.08818527,178.4,178.37,1.89304269]
[1641087731549,27.66479,178.41,178.37,1.89304269]
[1641087731550,29.75291866,178.41,178.37,1.89304269]
[1641087732154,3.0,178.39,178.37,1.89304269]
[1641087732350,11.51917936,178.39,178.37,1.89304269]
[1641087732650,17.12440343,178.39,178.37,4.269e-05]
[1641087732851,13.14322407,178.39,178.35,11.94379353]
[1641087733051,11.94372536,178.38,178.3,19.64644712]
[1641087733452,27.66479,178.37,178.3,19.64644712]
[1641087734351,3.98212335,178.34,178.3,19.64644712]
[1641087734753,27.66479,178.37,178.3,19.64644712]
[1641087735355,30.66479,178.37,178.3,11.94379353]
[1641087735558,27.66479,178.33,178.28,6.46150688]
[1641087735858,33.10179,178.33,178.28,6.46150688]
[1641087737062,26.73000812,178.33,178.28,6.46150688]
[1641087739364,21.29300812,178.33,178.28,6.46150688]
[1641087740264,31.62018548,178.37,178.28,6.46150688]
[1641087740465,31.62018548,178.37,178.28,12.01050688]
[1641087740865,27.66479,178.37,178.28,12.01050688]
[1641087741468,27.66479,178.37,178.28,39.67529688]
[1641087741967,27.66479,178.37,178.28,12.01050688]
[1641087743371,31.62018548,178.37,178.28,12.01050688]
[1641087743572,31.62018548,178.37,178.28,39.67529688]
[1641087744677,3.95539548,178.33,178.29,19.44829931]
[1641087746775,3.95539548,178.34,178.29,19.44829931]
[1641087746975,3.95539548,178.34,178.31,4.48648164]
[1641087747376,3.95539548,178.36,178.31,16.43027517]
[1641087748577,3.95539548,178.35,178.31,16.43027517]
[1641087749178,3.95539548,178.36,178.32,11.94379353]
[1641087749979,3.95539548,178.34,178.31,4.48648164]
[1641087750680,3.95539548,178.35,178.31,16.43027517]
[1641087752582,3.95539548,178.34,178.31,4.48648164]
[1641087752981,3.95539548,178.34,178.33,4.48590806]
[1641087753582,3.95539548,178.34,178.33,9.60890806]
[1641087755684,3.95539548,178.34,178.33,14.09473419]
[1641087757188,11.86618644,178.37,178.33,14.09473419]
[1641087757693,3.98046644,178.34,178.33,14.09473419]
[1641087758589,3.98046644,178.35,178.33,14.09473419]
[1641087759589,31.6002,178.38,178.35,0.5049072]
[1641087759991,31.6002,178.38,178.33,9.60890806]
[1641087760691,31.6002,178.38,178.33,5.123]
[1641087760893,3.0,178.36,178.3,39.60858353]
[1641087761093,34.6002,178.38,178.3,39.60858353]
[1641087761392,34.6002,178.38,178.3,11.94379353]
[1641087761592,11.86618644,178.37,178.29,5.784]
[1641087761793,11.86618644,178.37,178.28,40.85129353]
[1641087762497,43.46638644,178.38,178.29,19.54064825]
[1641087762696,43.46638644,178.38,178.29,24.52964825]
[1641087765100,43.46638644,178.38,178.31,4.48646542]
[1641087765300,11.86618644,178.37,178.31,4.48646542]
[1641087766000,31.6002,178.38,178.31,16.43025895]
[1641087766202,31.6002,178.38,178.32,30.66479]
[1641087766408,11.86618644,178.4,178.33,7.48588628]
[1641087766603,42.81528644,178.4,178.33,9.72688628]
[1641087767002,30.9491,178.4,178.33,29.26753453]
[1641087768105,30.9491,178.4,178.34,11.94379353]
[1641087769906,30.9491,178.4,178.33,24.02653453]
[1641087771308,30.9491,178.4,178.33,4.48588628]
[1641087772809,30.9491,178.4,178.35,4.48540617]
[1641087773911,2.12691684,178.39,178.36,1.85449102]
[1641087774611,9.61591684,178.39,178.36,1.85449102]
[1641087774812,5.60569539,178.38,178.36,1.85449102]
[1641087775013,8.60569539,178.38,178.36,1.85449102]
[1641087775416,13.99310328,178.37,178.33,1.85449102]
[1641087775616,16.99310328,178.37,178.33,1.85449102]
[1641087775816,13.99310328,178.37,178.33,1.85449102]
[1641087776319,2.12691684,178.36,178.32,1.85449102]
[1641087776517,10.81691684,178.36,178.32,1.85449102]
[1641087776717,7.81691684,178.36,178.32,1.85449102]
[1641087777117,13.99310328,178.35,178.29,1.85449102]
[1641087778018,2.12691684,178.35,178.29,1.85449102]
[1641087779319,13.99310328,178.35,178.29,1.85449102]
[1641087779920,2.12691684,178.35,178.29,1.85449102]
[1641087785424,2.12691684,178.35,178.3,4.48663679]
[1641087785622,2.12691684,178.35,178.3,11.07563679]
[1641087786223,2.12691684,178.35,178.31,27.66479]
[1641087786623,31.6367,178.36,178.32,1.85449102]
[1641087787125,31.6367,178.36,178.32,6.34063058]
[1641087787524,11.86618644,178.4,178.32,6.34063058]
[1641087787725,43.71148644,178.4,178.34,4.48560808]
[1641087787925,43.71148644,178.4,178.34,10.15660808]
[1641087788625,2.12701792,178.39,178.35,1.85449102]
[1641087796033,2.12701792,178.39,178.35,6.33985204]
[1641087796935,2.12701792,178.39,178.36,1.85449102]
[1641087797735,2.12701792,178.39,178.36,6.3396321]
[1641087798335,43.71148644,178.4,178.36,4.48514108]
[1641087799035,2.12699934,178.39,178.36,4.48514108]
[1641087799838,43.78982005,178.4,178.36,4.48514108]
[1641087800838,2.12702734,178.39,178.36,4.48514108]
[1641087801339,43.78982005,178.4,178.36,4.48514108]
[1641087801940,31.8453,178.4,178.36,4.48514108]
[1641087803140,25.47494843,178.4,178.36,4.48514108]
[1641087803340,13.88475283,178.41,178.36,4.48514108]
[1641087803940,2.17591986,178.4,178.36,4.48514108]
[1641087805842,8.28,178.41,178.36,4.48514108]
[1641087809549,2.11921725,178.4,178.36,4.48514108]
[1641087811452,2.11921725,178.4,178.37,1.79723483]
[1641087815460,3.0,178.39,178.37,1.79723483]
[1641087815657,2.11921725,178.4,178.37,1.79723483]
[1641087816360,2.11921725,178.4,178.36,4.48514108]
[1641087817060,14.018512,178.4,178.36,4.48514108]
[1641087822265,3.97696027,178.37,178.36,4.48514108]
[1641087822865,2.11921725,178.4,178.36,4.48514108]
[1641087823167,14.018512,178.4,178.36,4.48514108]
[1641087825567,14.018512,178.4,178.32,62.70677038]
[1641087825772,48.062302,178.4,178.32,62.70677038]
[1641087825968,6.97725806,178.36,178.33,1.79521318]
[1641087826172,12.14425806,178.36,178.33,1.79521318]
[1641087826768,8.167,178.36,178.33,1.79521318]
[1641087826968,8.167,178.36,178.31,1.79521318]
[1641087826969,2.11921725,178.35,178.31,1.79521318]
[1641087827772,3.97781942,178.33,178.29,6.28206689]
[1641087828376,3.97781942,178.34,178.29,6.28206689]
[1641087828674,3.97781942,178.34,178.3,1.79521318]
[1641087829874,3.97781942,178.35,178.3,1.79521318]
[1641087831282,3.97781942,178.35,178.32,4.48624563]
[1641087831479,3.97781942,178.35,178.32,10.16424563]
[1641087831880,3.97781942,178.35,178.33,27.66479]
[1641087832079,3.97781942,178.36,178.33,29.46000318]
[1641087832783,3.97781942,178.36,178.34,1.79521318]
[1641087836786,3.97781942,178.35,178.34,1.79521318]
[1641087837485,3.97781942,178.36,178.34,1.79521318]
[1641087838286,3.97781942,178.35,178.34,1.79521318]
[1641087840894,3.97781942,178.36,178.33,27.66479]
[1641087841995,3.97781942,178.36,178.33,33.99179]
[1641087842394,3.97781942,178.37,178.35,4.48554428]
[1641087842996,3.97781942,178.38,178.35,4.48554428]
[1641087843797,3.97781942,178.38,178.36,27.66479]
[1641087844196,3.97781942,178.38,178.36,29.45914005]
[1641087844599,3.97781942,178.39,178.36,27.66479]
[1641087845403,3.97781942,178.38,178.36,27.66479]
[1641087847705,3.97781942,178.37,178.36,27.66479]
[1641087848506,2.11921725,178.4,178.36,27.66479]
[1641087848706,14.018512,178.4,178.36,27.66479]
[1641087849307,3.97505021,178.37,178.36,27.66479]
[1641087849906,3.97505021,178.38,178.36,29.45913386]
[1641087850505,3.97505021,178.38,178.36,27.66479]
[1641087851209,3.97505021,178.37,178.36,27.66479]
[1641087852113,14.018512,178.4,178.36,29.46200747]
[1641087852713,14.018512,178.4,178.36,27.66479]
[1641087853512,11.89929475,178.39,178.36,27.66479]
[1641087855216,11.89929475,178.39,178.34,4.48563099]
[1641087856220,3.98148528,178.35,178.34,4.48563099]
[1641087856516,3.98148528,178.35,178.34,32.15042099]
[1641087857717,3.98148528,178.36,178.34,32.15042099]
[1641087859116,3.98148528,178.35,178.34,32.15042099]
[1641087862025,3.98148528,178.35,178.34,36.63618428]
[1641087863427,11.89929475,178.39,178.34,36.63618428]
[1641087863630,14.018512,178.39,178.34,36.63618428]
[1641087864428,3.9790538,178.35,178.34,36.63618428]
[1641087864929,14.018512,178.39,178.34,36.63618428]
[1641087865830,3.97899033,178.35,178.34,36.63618428]
[1641087866530,11.89929475,178.39,178.34,36.63618428]
[1641087867231,3.97900826,178.35,178.34,36.63618428]
[1641087867835,11.89929475,178.39,178.34,36.63618428]
[1641087868533,3.97900592,178.35,178.34,36.63618428]
[1641087869231,11.89929475,178.39,178.34,36.63618428]
[1641087870031,3.97925104,178.35,178.34,36.63618428]
[1641087870732,11.89929475,178.39,178.34,36.63618428]
[1641087871335,3.97845655,178.35,178.34,36.63618428]
[1641087871934,11.89929475,178.39,178.34,38.43192965]
[1641087872534,3.97847604,178.35,178.34,36.63618428]
[1641087873236,11.89929475,178.39,178.34,38.43192203]
[1641087873739,3.97860488,178.35,178.34,36.63618428]
[1641087874539,3.97860488,178.35,178.34,32.15055329]
[1641087874741,3.97860488,178.35,178.34,27.66479]
[1641087874939,3.0,178.37,178.34,27.66479]
[1641087875843,2.11921725,178.36,178.34,27.66479]
[1641087876747,3.0,178.37,178.34,27.66479]
[1641087877347,2.18318009,178.36,178.34,27.66479]
[1641087878249,11.89929475,178.38,178.34,27.66479]
[1641087879447,11.89929475,178.38,178.3,5.3839402]
[1641087880052,3.97883,178.34,178.33,27.66479]
[1641087880652,14.08227581,178.38,178.33,27.66479]
[1641087880856,14.08227581,178.38,178.33,29.46049968]
[1641087881456,3.97879383,178.34,178.33,27.66479]
[1641087882053,11.89929475,178.37,178.33,27.66479]
[1641087882454,11.89929475,178.37,178.3,5.3839402]
[1641087882854,3.97344778,178.34,178.3,5.3839402]
[1641087883157,3.97344778,178.34,178.33,27.66479]
[1641087883556,14.08227581,178.38,178.33,27.66479]
[1641087884256,3.97340387,178.34,178.33,27.66479]
[1641087884957,14.08227581,178.38,178.33,27.66479]
[1641087885159,11.89929475,178.38,178.33,27.66479]
[1641087885356,14.89929475,178.38,178.33,27.66479]
[1641087885964,3.97352376,178.34,178.33,27.66479]
[1641087886564,2.18298106,178.37,178.33,27.66479]
[1641087886763,5.18298106,178.37,178.33,27.66479]
[1641087886966,2.18298106,178.37,178.33,27.66479]
[1641087887166,5.18298106,178.37,178.33,27.66479]
[1641087887368,2.18298106,178.36,178.33,27.66479]
[1641087887566,3.0,178.34,178.26,16.43146908]
[1641087888068,3.97374243,178.32,178.27,1.7931675]
[1641087888968,34.1346,178.35,178.27,1.7931675]
[1641087889371,31.1346,178.35,178.27,29.4579575]
[1641087889569,3.97385158,178.32,178.27,29.4579575]
[1641087890170,31.1346,178.35,178.27,29.4579575]
[1641087890369,31.1346,178.35,178.28,1.7931675]
[1641087890869,3.97366767,178.33,178.28,1.7931675]
[1641087892271,31.1346,178.35,178.28,1.7931675]
[1641087892873,3.97371289,178.33,178.28,1.7931675]
[1641087893676,31.1346,178.35,178.28,1.7931675]
[1641087894476,6.97380407,178.33,178.28,1.7931675]
[1641087894677,3.97380407,178.33,178.28,1.7931675]
[1641087895079,3.0,178.34,178.28,1.7931675]
[1641087895280,3.97398779,178.32,178.28,1.7931675]
[1641087895880,3.97405905,178.31,178.28,1.7931675]
[1641087896483,3.97379986,178.33,178.28,1.7931675]
[1641087896682,3.97379986,178.33,178.28,7.2251675]
[1641087897383,3.97354283,178.34,178.29,1.7931675]
[1641087897782,3.97354283,178.34,178.3,27.66479]
[1641087897982,6.97449471,178.33,178.3,27.66479]
[1641087898182,3.97449471,178.33,178.29,1.7931675]
[1641087898886,3.97510987,178.3,178.27,27.66479]
[1641087899686,11.89929475,178.34,178.27,27.66479]
[1641087899687,41.74562332,178.34,178.27,27.66479]
[1641087899888,41.74562332,178.34,178.27,32.63079]
[1641087900387,3.98108121,178.31,178.28,1.7964621]
[1641087901088,3.98091651,178.32,178.28,1.7964621]
[1641087901790,31.1346,178.35,178.3,27.66479]
[1641087902188,11.89929475,178.36,178.3,32.15137814]
[1641087902388,11.89929475,178.36,178.3,35.15137814]
[1641087902788,3.98052949,178.33,178.31,1.7964621]
[1641087902987,3.98052949,178.33,178.31,8.6664621]
[1641087903388,11.89929475,178.37,178.31,8.6664621]
[1641087903588,29.485,178.4,178.31,8.6664621]
[1641087903589,3.98016079,178.35,178.32,1.7964621]
[1641087903792,3.98016079,178.35,178.33,27.66479]
[1641087904292,14.124089,178.39,178.33,27.66479]
[1641087904491,3.97992436,178.36,178.34,1.7964621]
[1641087905293,8.22,178.41,178.34,1.7964621]
[1641087905493,3.97988914,178.37,178.34,1.7964621]
[1641087906995,31.6314,178.39,178.34,1.7964621]
[1641087907194,3.98006109,178.36,178.34,1.7964621]
[1641087907593,31.6314,178.39,178.34,1.7964621]
[1641087908595,3.97999316,178.36,178.34,1.7964621]
[1641087908996,31.6314,178.39,178.34,1.7964621]
[1641087909694,3.97998804,178.36,178.34,1.7964621]
[1641087910595,31.6314,178.39,178.34,1.7964621]
[1641087910797,3.97982328,178.37,178.34,1.7964621]
[1641087911295,3.97982328,178.37,178.35,4.4855087]
[1641087911496,2.18318634,178.38,178.35,4.4855087]
[1641087912395,31.6314,178.39,178.35,4.4855087]
[1641087912595,3.97978328,178.37,178.36,1.7964621]
[1641087912997,31.6314,178.39,178.36,1.7964621]
[1641087913196,20.15946985,178.41,178.36,8.4214621]
[1641087913197,2.18399997,178.38,178.36,8.4214621]
[1641087913697,8.22,178.41,178.36,8.4214621]
[1641087913897,3.98115487,178.37,178.36,6.625]
[1641087914700,20.16346461,178.41,178.36,6.625]
[1641087915200,8.22,178.41,178.36,6.625]
[1641087915500,12.18060821,178.41,178.36,6.625]
[1641087916101,8.22,178.41,178.36,6.625]
[1641087916802,12.18065382,178.41,178.35,8.97090228]
[1641087917001,12.18065382,178.41,178.35,4.48539358]
[1641087917305,12.18065382,178.41,178.33,59.10959]
[1641087917901,3.96065382,178.4,178.33,59.10959]
[1641087918401,3.9610766,178.39,178.33,59.10959]
[1641087920703,3.9610766,178.37,178.33,59.10959]
[1641087921204,3.9610766,178.37,178.33,31.4448]
[1641087921605,2.17310887,178.38,178.33,31.4448]
[1641087922407,3.96708342,178.37,178.33,31.4448]
[1641087922905,29.4564,178.39,178.33,31.4448]
[1641087923104,3.96704912,178.38,178.33,31.4448]
[1641087923707,29.4564,178.39,178.33,31.4448]
[1641087924407,3.96706194,178.38,178.33,31.4448]
[1641087924910,6.805,178.38,178.33,31.4448]
[1641087925110,3.96710581,178.37,178.33,31.4448]
[1641087925909,29.4564,178.39,178.33,31.4448]
[1641087926411,3.96711745,178.37,178.33,31.4448]
[1641087927214,29.4564,178.39,178.33,31.4448]
[1641087927418,3.9670378,178.38,178.33,31.4448]
[1641087928014,29.4564,178.39,178.33,31.4448]
[1641087928216,3.97217161,178.37,178.33,31.4448]
[1641087928714,29.4564,178.39,178.33,31.4448]
[1641087929214,29.4564,178.39,178.33,34.4448]
[1641087929416,3.97229337,178.37,178.34,4.48557396]
[1641087929614,3.97229337,178.37,178.36,4.48510345]
[1641087930017,11.88182464,178.41,178.36,35.14989345]
[1641087930315,53.08003237,178.48,178.4,4.48430121]
[1641087930316,39.54661464,178.43,178.4,4.48430121]
[1641087930519,39.54661464,178.43,178.4,9.67630121]
[1641087931115,2.1783336,178.42,178.4,9.67630121]
[1641087932017,27.66479,178.43,178.4,9.67630121]
[1641087933418,20.32182464,178.46,178.4,9.67630121]
[1641087934123,29.84280866,178.45,178.4,9.67630121]
[1641087934820,2.17801866,178.44,178.4,9.67630121]
[1641087936222,2.17801866,178.45,178.4,9.67630121]
[1641087937423,14.0598433,178.45,178.4,9.67630121]
[1641087937624,41.7246333,178.45,178.4,9.67630121]
[1641087937824,44.7246333,178.45,178.4,9.67630121]
[1641087938324,3.0,178.44,178.37,5.38204379]
[1641087938526,2.17801866,178.44,178.37,5.38204379]
[1641087939227,14.0598433,178.44,178.37,5.38204379]
[1641087942128,11.88182464,178.43,178.37,5.38204379]
[1641087942627,11.88182464,178.43,178.36,27.66479]
[1641087942835,11.88182464,178.42,178.36,27.66479]
[1641087943730,14.0598433,178.42,178.36,27.66479]
[1641087944028,14.0598433,178.42,178.34,5.38285986]
[1641087945129,14.0598433,178.42,178.35,1.79288364]
[1641087945728,41.7246333,178.42,178.34,5.38285986]
[1641087945929,3.96798156,178.39,178.34,5.38285986]
[1641087946630,3.96813369,178.38,178.34,5.38285986]
[1641087947229,2.17801866,178.4,178.34,5.38285986]
[1641087948028,3.96817213,178.38,178.34,5.38285986]
[1641087948731,4.552,178.39,178.34,5.38285986]
[1641087949332,3.96818378,178.38,178.34,5.38285986]
[1641087950435,5.60459577,178.41,178.34,5.38285986]
[1641087950636,3.96822134,178.37,178.34,5.38285986]
[1641087951241,2.17700297,178.4,178.34,5.38285986]
[1641087951437,3.98153462,178.35,178.34,5.38285986]
[1641087952135,11.88182464,178.39,178.34,5.38285986]
[1641087952838,3.98155012,178.35,178.34,5.38285986]
[1641087953339,2.17700297,178.4,178.35,0.5039644]
[1641087953539,2.17700297,178.4,178.34,5.38285986]
[1641087953741,14.08383901,178.41,178.34,5.38285986]
[1641087953938,11.9447692,178.39,178.34,5.38285986]
[1641087957543,14.09328591,178.4,178.34,5.38285986]
[1641087958946,14.09328591,178.4,178.36,4.48525804]
[1641087961249,5.60459577,178.41,178.36,4.48525804]
[1641087962050,5.60459577,178.41,178.35,27.66479]
[1641087962251,5.60459577,178.41,178.34,5.38285986]
[1641087962649,14.09306845,178.4,178.34,5.38285986]
[1641087962850,20.34606845,178.4,178.34,5.38285986]
[1641087963051,3.0,178.39,178.32,39.60858353]
[1641087963251,2.1485155,178.39,178.32,27.66479]
[1641087963451,27.66479,178.38,178.29,34.12614025]
[1641087963954,30.66479,178.38,178.29,34.12614025]
[1641087964252,5.60616678,178.36,178.29,6.46135025]
[1641087964455,3.0,178.35,178.26,47.75563982]
[1641087964651,34.6475,178.35,178.26,47.75563982]
[1641087964851,3.0,178.34,178.26,35.81184629]
[1641087965252,3.0,178.34,178.26,6.46214629]
[1641087965451,27.66479,178.32,178.26,6.46214629]
[1641087965651,33.88979,178.32,178.26,6.46214629]
[1641087966752,27.51678213,178.32,178.26,6.46214629]
[1641087967856,2.19957049,178.31,178.26,6.46214629]
[1641087971358,2.19957049,178.31,178.27,1.77554713]
[1641087972058,14.14412344,178.34,178.27,1.77554713]
[1641087975062,11.94455295,178.33,178.27,1.77554713]
[1641087975466,11.94455295,178.33,178.29,4.48702671]
[1641087975663,11.94455295,178.33,178.29,9.93702671]
[1641087975863,2.19957049,178.34,178.29,9.93702671]
[1641087976667,2.19957049,178.34,178.3,1.77554713]
[1641087978267,2.19957049,178.34,178.3,6.12154713]
[1641087979168,2.19957049,178.34,178.31,1.77554713]
[1641087980171,2.19957049,178.34,178.29,4.48702671]
[1641087980972,2.19957049,178.34,178.3,1.77560585]
[1641087982574,2.19957049,178.34,178.3,6.67260585]
[1641087983778,2.19957049,178.34,178.3,4.897]
[1641087985283,3.0,178.33,178.3,4.897]
[1641087985679,3.0,178.33,178.28,27.66479]
[1641087985881,5.19957049,178.34,178.27,30.3885]
[1641087986280,2.19957049,178.33,178.27,30.3885]
[1641087992691,2.19957049,178.34,178.28,1.77007079]
[1641087995891,14.14412344,178.34,178.28,1.77007079]
[1641087999398,11.94455295,178.33,178.28,1.77007079]
[1641088001303,11.94455295,178.33,178.28,6.25730494]
[1641088001908,14.14412344,178.34,178.28,33.92209494]
[1641088002707,14.14412344,178.34,178.29,1.77007079]
[1641088003307,11.94455295,178.33,178.29,1.77007079]
[1641088005809,11.94455295,178.33,178.29,6.25695931]
[1641088006009,11.94455295,178.33,178.29,33.92174931]
[1641088006409,11.94455295,178.33,178.29,32.15167852]
[1641088007311,11.94455295,178.33,178.29,36.63850738]
[1641088007512,11.94455295,178.33,178.29,8.97371738]
[1641088008114,11.94455295,178.33,178.29,36.63850738]
[1641088009110,11.94455295,178.33,178.29,8.97371738]
[1641088014716,14.94455295,178.33,178.27,30.3885]
[1641088014916,11.94455295,178.33,178.27,30.3885]
[1641088015617,3.98295304,178.28,178.27,30.3885]
[1641088015816,3.98295304,178.28,178.26,32.15237347]
[1641088017518,3.98295304,178.29,178.26,32.15237347]
[1641088019321,3.98295304,178.3,178.26,32.15237347]
[1641088021322,3.98295304,178.29,178.26,32.15237347]
[1641088025630,3.98295304,178.28,178.26,4.48758347]
[1641088027035,3.98295304,178.29,178.26,32.15237347]
[1641088028233,14.14412344,178.33,178.26,32.15237347]
[1641088028434,3.98295121,178.28,178.26,32.15237347]
[1641088028935,2.19957049,178.33,178.26,32.15237347]
[1641088029434,2.19957049,178.33,178.26,4.48758347]
[1641088029638,3.98295173,178.28,178.26,4.48758347]
[1641088030136,2.19957049,178.33,178.26,4.48758347]
[1641088030537,3.0,178.32,178.26,32.15237347]
[1641088030737,9.378,178.32,178.26,32.15237347]
[1641088030937,3.98296003,178.28,178.27,1.77555775]
[1641088031136,8.87696003,178.28,178.27,1.77555775]
[1641088031539,4.894,178.28,178.26,4.48758347]
[1641088032342,2.19957049,178.27,178.26,4.48758347]
[1641088033141,4.894,178.28,178.26,4.48758347]
[1641088033843,2.2081044,178.27,178.26,4.48758347]
[1641088034444,11.95054758,178.3,178.26,4.48758347]
[1641088035047,11.95054758,178.29,178.26,4.48758347]
[1641088035747,10.75123192,178.3,178.26,4.48758347]
[1641088036447,14.1582418,178.3,178.26,4.48758347]
[1641088037947,29.1057,178.31,178.26,4.48758347]
[1641088038446,14.15815113,178.3,178.26,4.48758347]
[1641088039046,29.1057,178.31,178.26,4.48758347]
[1641088039950,3.98341217,178.27,178.26,4.48758347]
[1641088040951,3.97327209,178.29,178.26,4.48758347]
[1641088041652,37.6457,178.31,178.26,4.48758347]
[1641088041855,3.97314411,178.3,178.26,4.48758347]
[1641088042453,37.6457,178.31,178.26,4.48758347]
[1641088042953,3.97312304,178.29,178.26,4.48758347]
[1641088043756,37.6457,178.31,178.26,4.48758347]
[1641088044759,2.20747445,178.3,178.29,0.50382034]
[1641088044955,2.20747445,178.3,178.29,5.85682034]
[1641088045156,2.20747445,178.3,178.29,5.353]
[1641088045454,2.17100656,178.35,178.29,5.353]
[1641088045658,14.11891386,178.35,178.29,5.353]
[1641088046455,11.9479073,178.35,178.29,5.353]
[1641088046655,11.9479073,178.35,178.3,27.66479]
[1641088047860,10.61502322,178.37,178.3,27.66479]
[1641088048556,11.9472777,178.35,178.3,27.66479]
[1641088049358,11.9472777,178.34,178.3,27.66479]
[1641088049757,11.9472777,178.34,178.28,30.9554]
[1641088052059,11.9472777,178.35,178.28,30.9554]
[1641088053864,11.9472777,178.35,178.28,35.44269236]
[1641088056368,11.9472777,178.34,178.28,35.44269236]
[1641088058972,11.9472777,178.34,178.28,63.10748236]
[1641088059374,11.9472777,178.34,178.3,4.48675478]
[1641088060673,11.9472777,178.34,178.3,8.97340347]
[1641088062172,2.17100656,178.35,178.3,8.97340347]
[1641088070180,14.11828426,178.35,178.3,8.97340347]
[1641088072884,14.11828426,178.35,178.31,1.81163816]
[1641088074689,11.9472777,178.34,178.3,4.48664869]
[1641088075289,2.17100656,178.35,178.3,4.48664869]
[1641088076090,11.94797552,178.34,178.3,4.48664869]
[1641088076292,17.81397552,178.34,178.28,30.9554]
[1641088076692,2.17100656,178.33,178.29,1.81162146]
[1641088077495,11.94850445,178.33,178.29,1.81162146]
[1641088078293,29.6827,178.35,178.29,1.81162146]
[1641088078493,10.61552113,178.34,178.29,1.81162146]
[1641088078995,2.17126287,178.34,178.29,1.81162146]
[1641088079195,14.11962081,178.34,178.29,1.81162146]
[1641088079794,2.17126287,178.34,178.29,1.81162146]
[1641088080594,41.63105794,178.35,178.29,1.81162146]
[1641088080995,2.17116754,178.34,178.29,1.81162146]
[1641088081295,14.11952548,178.34,178.29,1.81162146]
[1641088081694,19.72632092,178.34,178.29,1.81162146]
[1641088082496,19.72632092,178.34,178.28,30.9554]
[1641088082696,2.17116754,178.33,178.28,30.9554]
[1641088084504,2.17116754,178.33,178.27,4.48739269]
[1641088084702,2.17116754,178.33,178.26,27.66479]
[1641088085202,14.11952548,178.34,178.28,1.80893044]
[1641088086004,14.11952548,178.34,178.27,1.80893044]
[1641088087202,11.94835794,178.33,178.27,1.80893044]
[1641088088604,14.11952548,178.34,178.27,1.80893044]
[1641088089704,11.94835794,178.33,178.28,4.48727129]
[1641088091911,11.94835794,178.32,178.28,4.48727129]
[1641088092513,10.60456468,178.34,178.28,4.48727129]
[1641088092708,10.60456468,178.34,178.28,11.31127129]
[1641088093110,11.94932503,178.32,178.28,11.31127129]
[1641088093810,10.60456468,178.34,178.28,11.31127129]
[1641088094411,11.94930938,178.32,178.28,11.31127129]
[1641088095212,10.60456468,178.34,178.29,4.48684324]
[1641088095612,10.60456468,178.34,178.3,4.4867086]
[1641088096012,11.94933007,178.32,178.3,4.4867086]
[1641088096614,10.60456468,178.34,178.3,4.4867086]
[1641088096813,11.94913953,178.33,178.3,4.4867086]
[1641088105223,11.94913953,178.33,178.32,4.4860709]
[1641088105422,11.94913953,178.33,178.32,11.2930709]
[1641088105822,14.12030707,178.35,178.32,11.2930709]
[1641088106924,14.12030707,178.35,178.32,4.4860709]
[1641088107125,14.12030707,178.35,178.27,18.40564413]
[1641088107324,48.73830707,178.35,178.27,48.68224413]
[1641088107524,76.40309707,178.35,178.27,48.68224413]
[1641088107926,3.98250788,178.29,178.28,1.81138177]
[1641088108926,11.94752365,178.32,178.28,1.81138177]
[1641088110426,11.94752365,178.32,178.27,6.4618506]
[1641088110826,20.5551051,178.32,178.27,6.4618506]
[1641088111233,11.94752365,178.32,178.27,6.4618506]
[1641088111730,11.94752365,178.3,178.27,6.4618506]
[1641088113631,5.17112612,178.33,178.27,6.4618506]
[1641088113834,2.17112612,178.32,178.27,6.4618506]
[1641088114230,5.35815334,178.32,178.27,6.4618506]
[1641088114733,2.17112612,178.32,178.27,6.4618506]
[1641088115335,11.95085384,178.3,178.27,6.4618506]
[1641088118341,11.95085384,178.29,178.27,6.4618506]
[1641088121242,11.95085384,178.3,178.27,6.4618506]
[1641088121441,11.95085384,178.3,178.27,11.4488506]
[1641088121842,11.95085384,178.3,178.28,4.48731394]
[1641088122845,12.60915414,178.29,178.22,11.94379353]
[1641088123044,3.0,178.23,178.2,23.67876875]
[1641088123343,9.60915414,178.29,178.2,23.67876875]
[1641088123344,3.0,178.21,178.2,23.07876875]
[1641088123545,7.261,178.21,178.15,40.72123158]
[1641088123744,7.261,178.21,178.15,15.48123158]
[1641088123943,8.61214468,178.17,178.04,3.0]
[1641088124146,14.61714468,178.17,178.04,32.0472]